fUST/lending_fUST_20250725
["ID","MTS","AMOUNT","RATE_DAILY","PERIOD"]
[374635218,1753390250978,-229.025071,0.00019726,2]
[374635219,1753390250987,-460.0,0.00019726,2]
[374635220,1753390250997,-460.0,0.00019726,2]
[374635221,1753390251006,-460.0,0.00019726,2]
[374635222,1753390251016,-460.0,0.00019726,2]
[374635223,1753390251025,-460.0,0.00019726,2]
[374635224,1753390251035,-151.0,0.00019726,2]
[374635225,1753390251045,-460.0,0.00019726,2]
[374635226,1753390251054,-3006.82,0.00019726,2]
[374635227,1753390251063,-522.81,0.00019726,2]
[374635228,1753390251073,-151.0,0.00019726,2]
[374635229,1753390251083,-539.638431,0.00019726,2]
[374635230,1753390251093,-460.0,0.00019726,2]
[374635231,1753390251103,-460.0,0.00019726,2]
[374635232,1753390251113,-2786.71,0.00019726,2]
[374635233,1753390251122,-460.0,0.00019726,2]
[374635234,1753390251132,-460.0,0.00019726,2]
[374635235,1753390251142,-182.021769,0.00019726,2]
[374635236,1753390251151,-539.638431,0.00019726,2]
[374635237,1753390251161,-495.05,0.00019726,2]
[374635238,1753390251171,-151.0,0.00019726,2]
[374635239,1753390251180,-182.021769,0.00019726,2]
[374635240,1753390251190,-831.08,0.00019726,2]
[374635241,1753390251200,-151.0,0.00019726,2]
[374635242,1753390251210,-1390.72299856,0.00019747,2]
[374635243,1753390251219,-460.0,0.00019767,2]
[374635244,1753390251229,-460.0,0.00019767,2]
[374635245,1753390251239,-460.0,0.00019767,2]
[374635246,1753390251248,-460.0,0.00019767,2]
[374635247,1753390251257,-460.0,0.00019767,2]
[374635248,1753390251267,-460.0,0.00019767,2]
[374635249,1753390251278,-957.06,0.00019767,2]
[374635250,1753390251290,-821.11,0.00019767,2]
[374635251,1753390251300,-603.35,0.00019767,2]
[374635252,1753390251309,-487.14,0.00019767,2]
[374635253,1753390251319,-460.0,0.00019767,2]
[374635254,1753390251329,-460.0,0.00019767,2]
[374635255,1753390251339,-595.54,0.00019767,2]
[374635256,1753390251349,-460.0,0.00019767,2]
[374635257,1753390251360,-460.0,0.00019767,2]
[374635258,1753390251370,-460.0,0.00019767,2]
[374635259,1753390251381,-460.0,0.00019767,2]
[374635260,1753390251393,-460.0,0.00019767,2]
[374635261,1753390251405,-460.0,0.00019767,2]
[374635262,1753390251417,-460.0,0.00019767,2]
[374635263,1753390251505,-1500.19,0.00019767,2]
[374635264,1753390251515,-161.00759347,0.00019767,2]
[374635265,1753390251524,-460.0,0.00019767,2]
[374635266,1753390251534,-460.0,0.00019767,2]
[374635267,1753390251543,-557.05208315,0.00019767,2]
[374635268,1753390251553,-460.0,0.00019767,2]
[374635269,1753390251562,-460.0,0.00019767,2]
[374635270,1753390251572,-460.0,0.00019767,2]
[374635271,1753390251582,-460.0,0.00019767,2]
[374635272,1753390251591,-468.35645803,0.00019767,2]
[374635273,1753390251600,-511.41,0.00019767,2]
[374635274,1753390251610,-648.42,0.00019767,2]
[374635275,1753390251620,-460.0,0.00019767,2]
[374635276,1753390251631,-460.0,0.00019767,2]
[374635277,1753390251640,-498.25,0.00019767,2]
[374635278,1753390251650,-460.0,0.00019767,2]
[374635279,1753390251660,-460.0,0.00019767,2]
[374635280,1753390251669,-460.0,0.00019767,2]
[374635281,1753390251679,-460.0,0.00019767,2]
[374635282,1753390251689,-460.0,0.00019767,2]
[374635283,1753390251698,-460.0,0.00019767,2]
[374635284,1753390251708,-460.0,0.00019767,2]
[374635285,1753390251718,-460.0,0.00019767,2]
[374635286,1753390251727,-151.0,0.00019767,2]
[374635287,1753390251737,-460.0,0.00019767,2]
[374635288,1753390251746,-460.0,0.00019767,2]
[374635289,1753390251756,-151.0,0.00019767,2]
[374635290,1753390251765,-1232.13,0.00019767,2]
[374635291,1753390251775,-460.0,0.00019767,2]
[374635292,1753390251785,-460.0,0.00019767,2]
[374635293,1753390251794,-460.0,0.00019767,2]
[374635294,1753390251804,-460.0,0.00019767,2]
[374635295,1753390251814,-460.0,0.00019767,2]
[374635296,1753390251824,-460.0,0.00019767,2]
[374635297,1753390251833,-460.0,0.00019767,2]
[374635298,1753390251843,-460.0,0.00019767,2]
[374635299,1753390251852,-460.0,0.00019767,2]
[374635300,1753390251862,-151.0,0.00019767,2]
[374635301,1753390251871,-460.0,0.00019767,2]
[374635302,1753390251880,-460.0,0.00019767,2]
[374635303,1753390251890,-151.0,0.00019767,2]
[374635304,1753390251900,-460.0,0.00019767,2]
[374635305,1753390251910,-151.0,0.00019767,2]
[374635306,1753390251919,-460.0,0.00019767,2]
[374635307,1753390251929,-151.0,0.00019767,2]
[374635308,1753390251939,-518.39,0.00019767,2]
[374635309,1753390251948,-460.0,0.00019767,2]
[374635310,1753390251958,-460.0,0.00019767,2]
[374635311,1753390251967,-460.0,0.00019767,2]
[374635312,1753390251977,-460.0,0.00019767,2]
[374635313,1753390251987,-151.0,0.00019767,2]
[374635314,1753390251996,-151.0,0.00019767,2]
[374635315,1753390252006,-217.12036078,0.00019767,2]
[374635316,1753390252015,-152.025872,0.00019767,2]
[374635317,1753390252025,-528.49,0.00019767,2]
[374635318,1753390252035,-460.0,0.00019767,2]
[374635319,1753390252044,-152.025872,0.00019767,2]
[374635320,1753390252054,-460.0,0.00019767,2]
[374635321,1753390252063,-460.0,0.00019767,2]
[374635322,1753390252073,-460.0,0.00019767,2]
[374635323,1753390252082,-151.0,0.00019767,2]
[374635324,1753390252092,-460.0,0.00019767,2]
[374635325,1753390252102,-460.0,0.00019767,2]
[374635326,1753390252112,-460.0,0.00019767,2]
[374635327,1753390252121,-460.0,0.00019767,2]
[374635328,1753390252131,-460.0,0.00019767,2]
[374635329,1753390252140,-460.0,0.00019767,2]
[374635330,1753390252150,-678.37,0.00019767,2]
[374635331,1753390252159,-151.0,0.00019767,2]
[374635332,1753390252169,-460.0,0.00019767,2]
[374635333,1753390252178,-151.0,0.00019767,2]
[374635334,1753390252188,-460.0,0.00019767,2]
[374635335,1753390252197,-151.0,0.00019767,2]
[374635336,1753390252207,-151.0,0.00019767,2]
[374635337,1753390252216,-151.0,0.00019767,2]
[374635338,1753390252225,-151.0,0.00019767,2]
[374635339,1753390252235,-151.0,0.00019767,2]
[374635340,1753390252245,-460.0,0.00019767,2]
[374635341,1753390252255,-837.51,0.00019767,2]
[374635342,1753390252265,-460.0,0.00019767,2]
[374635343,1753390252275,-1180.59,0.00019767,2]
[374635344,1753390252293,-170.450996,0.00019767,2]
[374635345,1753390252306,-170.450996,0.00019767,2]
[374635346,1753390252316,-305.727536,0.00019767,2]
[374635347,1753390252326,-305.727536,0.00019767,2]
[374635348,1753390252335,-501.57043918,0.00019821,2]
[374635349,1753390252345,-151.0,0.000199,2]
[374635350,1753390252355,-3159.50445663,0.000199,2]
[374635351,1753390252364,-500.0,0.00019973,2]
[374635352,1753390252374,-500.0,0.00019973,2]
[374635353,1753390252383,-500.0,0.00019973,2]
[374635354,1753390252393,-355.55508519,0.00019973,2]
[374635355,1753390252402,-500.0,0.00019973,2]
[374635356,1753390252411,-500.0,0.00019973,2]
[374635357,1753390252421,-500.0,0.00019973,2]
[374635358,1753390252431,-500.0,0.00019973,2]
[374635359,1753390252440,-500.0,0.00019973,2]
[374635360,1753390252449,-500.0,0.00019973,2]
[374635361,1753390252458,-507.58685935,0.00019973,2]
[374635362,1753390252467,-505.53775134,0.00019973,2]
[374635363,1753390252477,-500.0,0.00019973,2]
[374635364,1753390252486,-500.0,0.00019973,2]
[374635365,1753390252495,-500.0,0.00019973,2]
[374635366,1753390252505,-500.0,0.00019973,2]
[374635367,1753390252515,-562.39892855,0.00019973,2]
[374635368,1753390252524,-500.0,0.00019973,2]
[374635369,1753390252534,-500.0,0.00019973,2]
[374635370,1753390252544,-100000.0,0.0001999,2]
[374635371,1753390252554,-151.0,0.0001999,2]
[374635372,1753390252563,-151.0,0.0001999,2]
[374635373,1753390252573,-151.0,0.0001999,2]
[374635374,1753390252583,-151.0,0.0001999,2]
[374635375,1753390252592,-151.0,0.0001999,2]
[374635376,1753390252602,-151.0,0.0001999,2]
[374635377,1753390252611,-151.0,0.0001999,2]
[374635378,1753390252620,-151.0,0.0001999,2]
[374635379,1753390252631,-296.817381,0.0001999,2]
[374635380,1753390252640,-151.0,0.0001999,2]
[374635381,1753390252650,-151.0,0.0001999,2]
[374635382,1753390252660,-167.889581,0.0001999,2]
[374635383,1753390252669,-151.0,0.0001999,2]
[374635384,1753390252679,-167.889581,0.0001999,2]
[374635385,1753390252689,-229.025071,0.0001999,2]
[374635386,1753390252698,-229.025071,0.0001999,2]
[374635387,1753390252708,-151.0,0.0001999,2]
[374635388,1753390252718,-197.83397,0.0001999,2]
[374635389,1753390252727,-182.021769,0.0001999,2]
[374635390,1753390252737,-151.453999,0.0001999,2]
[374635391,1753390252747,-182.021769,0.0001999,2]
[374635392,1753390252757,-151.0,0.0001999,2]
[374635393,1753390252767,-1688.83302075,0.00019996,2]
[374635394,1753390252845,-460.0,0.0002,2]
[374635395,1753390252855,-460.0,0.0002,2]
[374635396,1753390252864,-173.6125,0.0002,2]
[374635397,1753390252874,-460.0,0.0002,2]
[374635398,1753390252884,-462.33,0.0002,2]
[374635399,1753390252893,-151.0,0.0002,2]
[374635400,1753390252903,-460.0,0.0002,2]
[374635401,1753390252912,-460.0,0.0002,2]
[374635402,1753390252922,-460.0,0.0002,2]
[374635403,1753390252931,-460.0,0.0002,2]
[374635404,1753390252941,-460.0,0.0002,2]
[374635405,1753390252950,-460.0,0.0002,2]
[374635406,1753390252959,-460.0,0.0002,2]
[374635407,1753390252968,-508.15,0.0002,2]
[374635408,1753390252978,-460.0,0.0002,2]
[374635409,1753390252987,-460.0,0.0002,2]
[374635410,1753390252997,-460.0,0.0002,2]
[374635411,1753390253007,-585.07,0.0002,2]
[374635412,1753390253016,-460.0,0.0002,2]
[374635413,1753390253026,-460.0,0.0002,2]
[374635414,1753390253035,-460.0,0.0002,2]
[374635415,1753390253045,-460.0,0.0002,2]
[374635416,1753390253055,-460.0,0.0002,2]
[374635417,1753390253066,-460.0,0.0002,2]
[374635418,1753390253075,-460.0,0.0002,2]
[374635419,1753390253085,-483.32,0.0002,2]
[374635420,1753390253094,-902.51,0.0002,2]
[374635421,1753390253103,-460.0,0.0002,2]
[374635422,1753390253113,-151.0,0.0002,2]
[374635423,1753390253123,-460.0,0.0002,2]
[374635424,1753390253133,-151.0,0.0002,2]
[374635425,1753390253143,-460.0,0.0002,2]
[374635426,1753390253153,-605.59135474,0.0002,2]
[374635427,1753390253162,-480.42,0.0002,2]
[374635428,1753390253172,-460.0,0.0002,2]
[374635429,1753390253182,-151.0,0.0002,2]
[374635430,1753390253191,-151.0,0.0002,2]
[374635431,1753390253201,-460.0,0.0002,2]
[374635432,1753390253211,-151.0,0.0002,2]
[374635433,1753390253221,-460.0,0.0002,2]
[374635434,1753390253231,-151.0,0.0002,2]
[374635435,1753390253242,-462.64,0.0002,2]
[374635436,1753390253251,-460.0,0.0002,2]
[374635437,1753390253261,-787.03,0.0002,2]
[374635438,1753390253271,-152.025872,0.0002,2]
[374635439,1753390253282,-460.0,0.0002,2]
[374635440,1753390253293,-152.025872,0.0002,2]
[374635441,1753390253303,-460.0,0.0002,2]
[374635442,1753390253313,-460.0,0.0002,2]
[374635443,1753390253324,-460.0,0.0002,2]
[374635444,1753390253334,-460.0,0.0002,2]
[374635445,1753390253344,-151.0,0.0002,2]
[374635446,1753390253354,-460.0,0.0002,2]
[374635447,1753390253367,-460.0,0.0002,2]
[374635448,1753390253377,-460.0,0.0002,2]
[374635449,1753390253386,-460.0,0.0002,2]
[374635450,1753390253396,-1048.82,0.0002,2]
[374635451,1753390253406,-460.0,0.0002,2]
[374635452,1753390253416,-460.0,0.0002,2]
[374635453,1753390253425,-151.0,0.0002,2]
[374635454,1753390253435,-151.0,0.0002,2]
[374635455,1753390253445,-460.0,0.0002,2]
[374635456,1753390253454,-777.35,0.0002,2]
[374635457,1753390253464,-460.0,0.0002,2]
[374635458,1753390253474,-151.0,0.0002,2]
[374635459,1753390253484,-460.0,0.0002,2]
[374635460,1753390253494,-151.0,0.0002,2]
[374635461,1753390253503,-180.827933,0.0002,2]
[374635462,1753390253513,-151.0,0.0002,2]
[374635463,1753390253523,-246.81665,0.0002,2]
[374635464,1753390253533,-2807.71,0.0002,2]
[374635465,1753390253543,-460.0,0.0002,2]
[374635466,1753390253553,-885.34,0.0002,2]
[374635467,1753390253563,-349.6591925,0.0002,2]
[374635468,1753390253573,-460.0,0.0002,2]
[374635469,1753390253582,-878.19,0.0002,2]
[374635470,1753390253592,-5866.95,0.0002,2]
[374635471,1753390253602,-2174.12,0.0002,2]
[374635472,1753390253612,-460.0,0.0002,2]
[374635473,1753390253622,-796.82,0.0002,2]
[374635474,1753390253632,-460.0,0.0002,2]
[374635475,1753390253642,-1988.31,0.0002,2]
[374635476,1753390253651,-1226.95,0.0002,2]
[374635477,1753390253661,-460.0,0.0002,2]
[374635478,1753390253671,-386.86954409,0.0002,2]
[374635479,1753390253680,-151.0,0.0002,2]
[374635480,1753390253692,-214.72,0.0002,2]
[374635481,1753390253702,-2280.77,0.0002,2]
[374635482,1753390253712,-781.68,0.0002,2]
[374635483,1753390253723,-151.0,0.0002,2]
[374635484,1753390253732,-460.0,0.0002,2]
[374635485,1753390253742,-530.6,0.0002,2]
[374635486,1753390253752,-1935.91,0.0002,2]
[374635487,1753390253762,-460.0,0.0002,2]
[374635488,1753390253772,-460.0,0.0002,2]
[374635489,1753390253782,-460.0,0.0002,2]
[374635490,1753390253792,-151.0,0.0002,2]
[374635491,1753390253801,-944.99,0.0002,2]
[374635492,1753390253810,-3077.71,0.0002,2]
[374635493,1753390253820,-460.0,0.0002,2]
[374635494,1753390253829,-312.11058078,0.0002,2]
[374635495,1753390253839,-460.0,0.0002,2]
[374635496,1753390253849,-151.0,0.0002,2]
[374635497,1753390253858,-170.450996,0.0002,2]
[374635498,1753390253869,-460.0,0.0002,2]
[374635499,1753390253879,-170.450996,0.0002,2]
[374635500,1753390253888,-454.00162627,0.0002,2]
[374635501,1753390253898,-460.0,0.0002,2]
[374635502,1753390253908,-498.33,0.0002,2]
[374635503,1753390253917,-460.0,0.0002,2]
[374635504,1753390253927,-573.78,0.0002,2]
[374635505,1753390253937,-735.23,0.0002,2]
[374635506,1753390253947,-460.0,0.0002,2]
[374635507,1753390253957,-1001.45,0.0002,2]
[374635508,1753390253967,-3272.21,0.0002,2]
[374635509,1753390253977,-1170.66,0.0002,2]
[374635510,1753390253987,-460.0,0.0002,2]
[374635511,1753390253999,-460.0,0.0002,2]
[374635512,1753390254009,-570.98,0.0002,2]
[374635513,1753390254021,-1086.17,0.0002,2]
[374635514,1753390254098,-151.0,0.0002,2]
[374635515,1753390254108,-958.71,0.0002,2]
[374635516,1753390254117,-460.0,0.0002,2]
[374635517,1753390254127,-151.0,0.0002,2]
[374635518,1753390254136,-1057.11,0.0002,2]
[374635519,1753390254146,-2212.55,0.0002,2]
[374635520,1753390254156,-685.06,0.0002,2]
[374635521,1753390254165,-442.98552897,0.0002,2]
[374635522,1753390254175,-460.0,0.0002,2]
[374635523,1753390254185,-460.0,0.0002,2]
[374635524,1753390254195,-460.0,0.0002,2]
[374635525,1753390254206,-952.83,0.0002,2]
[374635526,1753390254218,-551.79,0.0002,2]
[374635527,1753390254230,-667.9,0.0002,2]
[374635528,1753390254242,-2359.98,0.0002,2]
[374635529,1753390254253,-460.0,0.0002,2]
[374635530,1753390254263,-829.5,0.0002,2]
[374635531,1753390254273,-460.0,0.0002,2]
[374635532,1753390254289,-653.88,0.0002,2]
[374635533,1753390254301,-460.0,0.0002,2]
[374635534,1753390254312,-460.0,0.0002,2]
[374635535,1753390254323,-555.44,0.0002,2]
[374635536,1753390254335,-432.42970882,0.0002,2]
[374635537,1753390254345,-460.0,0.0002,2]
[374635538,1753390254355,-692.3,0.0002,2]
[374635539,1753390254366,-460.0,0.0002,2]
[374635540,1753390254375,-460.0,0.0002,2]
[374635541,1753390254386,-988.21,0.0002,2]
[374635542,1753390254396,-2637.83,0.0002,2]
[374635543,1753390254407,-460.0,0.0002,2]
[374635544,1753390254417,-8036.87,0.0002,2]
[374635545,1753390254428,-460.0,0.0002,2]
[374635546,1753390254439,-305.727536,0.0002,2]
[374635547,1753390254451,-491.42,0.0002,2]
[374635548,1753390254462,-460.0,0.0002,2]
[374635549,1753390254472,-1131.15,0.0002,2]
[374635550,1753390254482,-305.727536,0.0002,2]
[374635551,1753390254492,-460.0,0.0002,2]
[374635552,1753390254501,-460.0,0.0002,2]
[374635553,1753390254511,-460.0,0.0002,2]
[374635554,1753390254521,-3311.82,0.0002,2]
[374635555,1753390254530,-460.0,0.0002,2]
[374635556,1753390254540,-778.77,0.0002,2]
[374635557,1753390254549,-460.0,0.0002,2]
[374635558,1753390254559,-604.97,0.0002,2]
[374635559,1753390254569,-460.0,0.0002,2]
[374635560,1753390254579,-460.0,0.0002,2]
[374635561,1753390254588,-1261.97,0.0002,2]
[374635562,1753390254598,-4000.0,0.0002,4]
[374635563,1753390254608,-3175.28,0.0002,2]
[374635564,1753390254618,-637.99,0.0002,2]
[374635565,1753390254627,-460.0,0.0002,2]
[374635566,1753390254637,-460.0,0.0002,2]
[374635567,1753390254647,-460.0,0.0002,2]
[374635568,1753390254656,-460.0,0.0002,2]
[374635569,1753390254667,-460.0,0.0002,2]
[374635570,1753390254677,-3006.82,0.0002,2]
[374635571,1753390254687,-460.0,0.0002,2]
[374635572,1753390254697,-522.81,0.0002,2]
[374635573,1753390254707,-460.0,0.0002,2]
[374635574,1753390254716,-539.638431,0.0002,2]
[374635575,1753390254727,-460.0,0.0002,2]
[374635576,1753390254736,-2786.71,0.0002,2]
[374635577,1753390254746,-460.0,0.0002,2]
[374635578,1753390254756,-460.0,0.0002,2]
[374635579,1753390254766,-539.638431,0.0002,2]
[374635580,1753390254778,-495.05,0.0002,2]
[374635581,1753390254789,-831.08,0.0002,2]
[374635582,1753390254799,-534.42479984,0.00020021,2]
[374635583,1753390254809,-1004.65145491,0.00020021,2]
[374635584,1753390254818,-1000.0,0.00020021,2]
[374635585,1753390254828,-1000.0,0.00020021,2]
[374635586,1753390254837,-1001.81370368,0.00020021,2]
[374635587,1753390254846,-1000.0,0.00020021,2]
[374635588,1753390254855,-1000.0,0.00020021,2]
[374635589,1753390254866,-1000.0,0.00020021,2]
[374635590,1753390254876,-1001.11210329,0.00020021,2]
[374635591,1753390254888,-1000.0,0.00020021,2]
[374635592,1753390254900,-1000.0,0.00020021,2]
[374635593,1753390254910,-1000.0,0.00020021,2]
[374635594,1753390254920,-1000.0,0.00020021,2]
[374635595,1753390254930,-1000.0,0.00020021,2]
[374635596,1753390254939,-160.0,0.00020027,2]
[374635597,1753390254949,-460.0,0.00020041,2]
[374635598,1753390254958,-460.0,0.00020041,2]
[374635599,1753390254968,-460.0,0.00020041,2]
[374635600,1753390254977,-464.70089885,0.00020041,2]
[374635601,1753390254987,-151.0,0.00020041,2]
[374635602,1753390254997,-957.06,0.00020041,2]
[374635603,1753390255007,-151.0,0.00020041,2]
[374635604,1753390255017,-821.11,0.00020041,2]
[374635605,1753390255028,-603.35,0.00020041,2]
[374635606,1753390255038,-151.0,0.00020041,2]
[374635607,1753390255048,-151.0,0.00020041,2]
[374635608,1753390255058,-487.14,0.00020041,2]
[374635609,1753390255068,-460.0,0.00020041,2]
[374635610,1753390255078,-460.0,0.00020041,2]
[374635611,1753390255087,-460.0,0.00020041,2]
[374635612,1753390255096,-306.231717,0.00020041,2]
[374635613,1753390255106,-460.0,0.00020041,2]
[374635614,1753390255115,-306.231717,0.00020041,2]
[374635615,1753390255124,-151.0,0.00020041,2]
[374635616,1753390255133,-460.0,0.00020041,2]
[374635617,1753390255144,-460.0,0.00020041,2]
[374635618,1753390255153,-1500.19,0.00020041,2]
[374635619,1753390255163,-460.0,0.00020041,2]
[374635620,1753390255173,-460.0,0.00020041,2]
[374635621,1753390255184,-460.0,0.00020041,2]
[374635622,1753390255194,-460.0,0.00020041,2]
[374635623,1753390255206,-559.66935542,0.00020041,2]
[374635624,1753390255218,-511.41,0.00020041,2]
[374635625,1753390255301,-648.42,0.00020041,2]
[374635626,1753390255323,-460.0,0.00020041,2]
[374635627,1753390255344,-498.25,0.00020041,2]
[374635628,1753390255356,-460.0,0.00020041,2]
[374635629,1753390255367,-460.0,0.00020041,2]
[374635630,1753390255379,-460.0,0.00020041,2]
[374635631,1753390255388,-460.0,0.00020041,2]
[374635632,1753390255398,-460.0,0.00020041,2]
[374635633,1753390255408,-460.0,0.00020041,2]
[374635634,1753390255418,-460.0,0.00020041,2]
[374635635,1753390255427,-460.0,0.00020041,2]
[374635636,1753390255437,-1232.13,0.00020041,2]
[374635637,1753390255447,-460.0,0.00020041,2]
[374635638,1753390255456,-460.0,0.00020041,2]
[374635639,1753390255466,-175.21622718,0.00020041,2]
[374635640,1753390255476,-460.0,0.00020041,2]
[374635641,1753390255486,-460.0,0.00020041,2]
[374635642,1753390255497,-460.0,0.00020041,2]
[374635643,1753390255507,-460.0,0.00020041,2]
[374635644,1753390255517,-460.0,0.00020041,2]
[374635645,1753390255527,-460.0,0.00020041,2]
[374635646,1753390255536,-460.0,0.00020041,2]
[374635647,1753390255545,-460.0,0.00020041,2]
[374635648,1753390255555,-460.0,0.00020041,2]
[374635649,1753390255564,-460.0,0.00020041,2]
[374635650,1753390255574,-518.39,0.00020041,2]
[374635651,1753390255584,-460.0,0.00020041,2]
[374635652,1753390255594,-460.0,0.00020041,2]
[374635653,1753390255603,-460.0,0.00020041,2]
[374635654,1753390255614,-460.0,0.00020041,2]
[374635655,1753390255625,-528.49,0.00020041,2]
[374635656,1753390255635,-460.0,0.00020041,2]
[374635657,1753390255646,-460.0,0.00020041,2]
[374635658,1753390255657,-460.0,0.00020041,2]
[374635659,1753390255667,-460.0,0.00020041,2]
[374635660,1753390255679,-460.0,0.00020041,2]
[374635661,1753390255691,-234.20491421,0.00020041,2]
[374635662,1753390255703,-678.37,0.00020041,2]
[374635663,1753390255714,-460.0,0.00020041,2]
[374635664,1753390255725,-460.0,0.00020041,2]
[374635665,1753390255736,-460.0,0.00020041,2]
[374635666,1753390255747,-837.51,0.00020041,2]
[374635667,1753390255759,-460.0,0.00020041,2]
[374635668,1753390255769,-1180.59,0.00020041,2]
[374635669,1753390255780,-151.0,0.00020044,2]
[374635670,1753390255792,-151.0,0.00020072,2]
[374635671,1753390255803,-151.0,0.00020072,2]
[374635672,1753390255813,-3159.5044566,0.00020072,2]
[374635673,1753390255823,-151.0,0.000201,4]
[374635674,1753390255833,-1456.94591192,0.00020104,2]
[374635675,1753390255844,-3609.07108579,0.00020165,2]
[374635676,1753390255866,-318.655777,0.00020187,2]
[374635677,1753390255886,-151.0,0.000202,4]
[374635678,1753390255907,-3159.5044566,0.00020245,2]
[374635679,1753390255928,-151.0,0.00020268,2]
[374635680,1753390255949,-151.0,0.00020268,2]
[374635681,1753390255967,-229.025071,0.00020268,2]
[374635682,1753390255987,-229.025071,0.00020268,2]
[374635683,1753390256004,-151.0,0.00020268,2]
[374635684,1753390256024,-151.0,0.00020268,2]
[374635685,1753390256044,-1511.40600132,0.00020268,2]
[374635686,1753390256061,-1500.0,0.00020268,2]
[374635687,1753390256077,-460.0,0.00020273,2]
[374635688,1753390256095,-460.0,0.00020273,2]
[374635689,1753390256114,-460.0,0.00020273,2]
[374635690,1753390256127,-462.33,0.00020273,2]
[374635691,1753390256144,-460.0,0.00020273,2]
[374635692,1753390256160,-151.0,0.00020273,2]
[374635693,1753390256176,-460.0,0.00020273,2]
[374635694,1753390256191,-460.0,0.00020273,2]
[374635695,1753390256207,-460.0,0.00020273,2]
[374635696,1753390256223,-460.0,0.00020273,2]
[374635697,1753390256239,-508.15,0.00020273,2]
[374635698,1753390256255,-460.0,0.00020273,2]
[374635699,1753390256270,-460.0,0.00020273,2]
[374635700,1753390256291,-151.0,0.00020273,2]
[374635701,1753390256307,-151.0,0.00020273,2]
[374635702,1753390256332,-585.07,0.00020273,2]
[374635703,1753390256348,-151.0,0.00020273,2]
[374635704,1753390256364,-460.0,0.00020273,2]
[374635705,1753390256380,-460.0,0.00020273,2]
[374635706,1753390256396,-460.0,0.00020273,2]
[374635707,1753390256411,-460.0,0.00020273,2]
[374635708,1753390256427,-314.60891328,0.00020273,2]
[374635709,1753390256442,-460.0,0.00020273,2]
[374635710,1753390256458,-460.0,0.00020273,2]
[374635711,1753390256473,-483.32,0.00020273,2]
[374635712,1753390256487,-902.51,0.00020273,2]
[374635713,1753390256502,-460.0,0.00020273,2]
[374635714,1753390256517,-151.0,0.00020273,2]
[374635715,1753390256532,-460.0,0.00020273,2]
[374635716,1753390256548,-151.0,0.00020273,2]
[374635717,1753390256559,-151.0,0.00020273,2]